[Event "*** Titled Tuesday Blitz"]
[Site "Chess.com"]
[Date "2021.03.02"]
[Round "11"]
[White "champ2005"]
[Black "iturrizaga"]
[Result "0-1"]
[WhiteElo "2980"]
[BlackElo "2869"]
[TimeControl "180+1"]
[EndTime "12:11:38 PST"]
[Termination "iturrizaga won by resignation"]

1. d4 {[%clk 0:03:00.9]} 1... Nf6 {[%clk 0:02:58.3]} 2. Bf4 {[%clk 0:03:01.2]}
2... e6 {[%clk 0:02:58]} 3. e3 {[%clk 0:03:01]} 3... d5 {[%clk 0:02:58.4]} 4.
Nf3 {[%clk 0:02:59.5]} 4... c5 {[%clk 0:02:58.8]} 5. c3 {[%clk 0:02:57.1]} 5...
Nc6 {[%clk 0:02:59]} 6. Nbd2 {[%clk 0:02:54]} 6... Nh5 {[%clk 0:02:59.1]} 7. Bg5
{[%clk 0:02:50.5]} 7... f6 {[%clk 0:02:59.2]} 8. Bh4 {[%clk 0:02:44.5]} 8... g6
{[%clk 0:02:59.4]} 9. Bd3 {[%clk 0:02:37.9]} 9... Be7 {[%clk 0:02:55.6]} 10. O-O
{[%clk 0:02:23.3]} 10... cxd4 {[%clk 0:02:38.2]} 11. exd4 {[%clk 0:02:10.8]}
11... O-O {[%clk 0:02:37.8]} 12. Re1 {[%clk 0:02:10.9]} 12... Bd6 {[%clk
0:02:28.7]} 13. c4 {[%clk 0:02:08.1]} 13... Kg7 {[%clk 0:01:46.1]} 14. Bf1
{[%clk 0:02:04.2]} 14... Ne7 {[%clk 0:01:29.3]} 15. Qb3 {[%clk 0:01:55.8]} 15...
b6 {[%clk 0:01:23.4]} 16. Bg3 {[%clk 0:01:53.8]} 16... Nxg3 {[%clk 0:01:22.4]}
17. hxg3 {[%clk 0:01:54.7]} 17... Bd7 {[%clk 0:01:22.5]} 18. Rac1 {[%clk
0:01:44.2]} 18... Rc8 {[%clk 0:01:22.4]} 19. cxd5 {[%clk 0:01:30.4]} 19... Nxd5
{[%clk 0:01:08.6]} 20. Bc4 {[%clk 0:01:26.6]} 20... Nc7 {[%clk 0:00:56.9]} 21.
Ne4 {[%clk 0:01:20.4]} 21... Be7 {[%clk 0:00:57.1]} 22. g4 {[%clk 0:01:20.8]}
22... h6 {[%clk 0:00:52.6]} 23. Ng3 {[%clk 0:01:18.9]} 23... Bd6 {[%clk
0:00:50.8]} 24. Ne4 {[%clk 0:01:18.6]} 24... Be7 {[%clk 0:00:51]} 25. Qd3 {[%clk
0:01:06.9]} 25... Nd5 {[%clk 0:00:48.3]} 26. Nc3 {[%clk 0:01:03]} 26... Bb4
{[%clk 0:00:20.5]} 27. Ba6 {[%clk 0:00:57.6]} 27... Bxc3 {[%clk 0:00:17.9]} 28.
bxc3 {[%clk 0:00:58.5]} 28... Rc7 {[%clk 0:00:17.1]} 29. c4 {[%clk 0:00:48.1]}
29... Nb4 {[%clk 0:00:15.8]} 30. Qa3 {[%clk 0:00:48.6]} 30... Nxa6 {[%clk
0:00:15.7]} 31. Qxa6 {[%clk 0:00:49.5]} 31... Qc8 {[%clk 0:00:16.1]} 32. Qa3
{[%clk 0:00:49.6]} 32... Rxc4 {[%clk 0:00:15.9]} 33. Rxc4 {[%clk 0:00:39.3]}
33... Qxc4 {[%clk 0:00:16.8]} 34. Rc1 {[%clk 0:00:39.7]} 34... Qd5 {[%clk
0:00:16.1]} 35. Qxa7 {[%clk 0:00:39.6]} 35... Rf7 {[%clk 0:00:16.2]} 36. Rc7
{[%clk 0:00:24.1]} 36... Be8 {[%clk 0:00:16]} 37. a3 {[%clk 0:00:20.1]} 37...
Qd6 {[%clk 0:00:13.4]} 38. Rb7 {[%clk 0:00:16.8]} 38... Rxb7 {[%clk 0:00:13.3]}
39. Qxb7+ {[%clk 0:00:17.7]} 39... Bf7 {[%clk 0:00:14]} 40. Qa7 {[%clk
0:00:18.1]} 40... Qc6 {[%clk 0:00:13.5]} 41. Kh2 {[%clk 0:00:18.3]} 41... g5
{[%clk 0:00:13.9]} 42. Qb8 {[%clk 0:00:14.9]} 42... b5 {[%clk 0:00:10.9]} 43.
Nd2 {[%clk 0:00:10.9]} 43... Qc3 {[%clk 0:00:10.1]} 44. Nf1 {[%clk 0:00:11.1]}
44... Qxd4 {[%clk 0:00:09.5]} 45. Ng3 {[%clk 0:00:11.2]} 45... Qxg4 {[%clk
0:00:09.4]} 46. Qxb5 {[%clk 0:00:11.8]} 46... Qh4+ {[%clk 0:00:09.4]} 47. Kg1
{[%clk 0:00:11.8]} 47... Qd4 {[%clk 0:00:10.1]} 48. a4 {[%clk 0:00:12.1]} 48...
h5 {[%clk 0:00:07.6]} 49. a5 {[%clk 0:00:12.2]} 49... h4 {[%clk 0:00:08.2]} 50.
Nf1 {[%clk 0:00:12.5]} 50... g4 {[%clk 0:00:08.7]} 51. Qb6 {[%clk 0:00:12.2]}
51... Qe4 {[%clk 0:00:07.4]} 52. a6 {[%clk 0:00:11.3]} 52... e5 {[%clk
0:00:02.6]} 53. Qb7 {[%clk 0:00:10.9]} 53... Qf4 {[%clk 0:00:02.9]} 54. a7
{[%clk 0:00:10.6]} 54... g3 {[%clk 0:00:03.5]} 55. fxg3 {[%clk 0:00:10.2]} 55...
hxg3 {[%clk 0:00:04.4]} 56. Nxg3 {[%clk 0:00:08.5]} 56... Qxg3 {[%clk
0:00:04.8]} 57. Qf3 {[%clk 0:00:06.7]} 57... Qe1+ {[%clk 0:00:03.5]} 58. Kh2
{[%clk 0:00:07.2]} 58... Qh4+ {[%clk 0:00:04.1]} 59. Qh3 {[%clk 0:00:07.7]}
59... Qa4 {[%clk 0:00:04.2]} 60. Qg3+ {[%clk 0:00:05.9]} 60... Bg6 {[%clk
0:00:04.5]} 61. Qe3 {[%clk 0:00:05.4]} 61... Be4 {[%clk 0:00:04.2]} 62. Qg3+
{[%clk 0:00:05.4]} 62... Kf7 {[%clk 0:00:04.7]} 63. Qe3 {[%clk 0:00:05.9]} 63...
Qc2 {[%clk 0:00:05]} 64. Qg1 {[%clk 0:00:04.8]} 64... Qa2 {[%clk 0:00:05.1]} 65.
Kh3 {[%clk 0:00:04.2]} 65... Bxg2+ {[%clk 0:00:05.7]} 66. Qxg2 {[%clk
0:00:03.6]} 66... Qxa7 {[%clk 0:00:06.4]} 67. Qd5+ {[%clk 0:00:04]} 67... Ke7
{[%clk 0:00:07]} 68. Qg8 {[%clk 0:00:03.6]} 68... Qd4 {[%clk 0:00:07.9]} 69.
Qh7+ {[%clk 0:00:03.6]} 69... Ke6 {[%clk 0:00:08.4]} 70. Qg8+ {[%clk 0:00:04.1]}
70... Ke7 {[%clk 0:00:08.8]} 71. Qg7+ {[%clk 0:00:04.2]} 71... Ke6 {[%clk
0:00:08.8]} 72. Qg8+ {[%clk 0:00:04.7]} 72... Kd6 {[%clk 0:00:09.3]} 73. Qd8+
{[%clk 0:00:04.9]} 73... Kc5 {[%clk 0:00:09]} 74. Qxf6 {[%clk 0:00:04.7]} 74...
Qe4 {[%clk 0:00:08.7]} 75. Qe7+ {[%clk 0:00:04.4]} 75... Kd4 {[%clk 0:00:09]}
76. Qb4+ {[%clk 0:00:04.9]} 76... Ke3 {[%clk 0:00:09.4]} 77. Qe1+ {[%clk
0:00:05.5]} 77... Kd4 {[%clk 0:00:08.6]} 78. Qb4+ {[%clk 0:00:05.5]} 78... Ke3
{[%clk 0:00:09.1]} 79. Qe1+ {[%clk 0:00:05.7]} 79... Kf4 {[%clk 0:00:08.3]} 80.
Qh4+ {[%clk 0:00:05.9]} 80... Kf3 {[%clk 0:00:07.5]} 81. Qh5+ {[%clk 0:00:05.1]}
81... Ke3 {[%clk 0:00:07.4]} 82. Qh6+ {[%clk 0:00:04.7]} 82... Qf4 {[%clk
0:00:07.5]} 83. Qb6+ {[%clk 0:00:05.3]} 83... Qd4 {[%clk 0:00:07.9]} 84. Qh6+
{[%clk 0:00:03.8]} 84... Kd3 {[%clk 0:00:08.5]} 85. Qa6+ {[%clk 0:00:03.4]}
85... Kd2 {[%clk 0:00:07.6]} 86. Qa5+ {[%clk 0:00:03.7]} 86... Qc3+ {[%clk
0:00:07.4]} 87. Qxc3+ {[%clk 0:00:02.1]} 87... Kxc3 {[%clk 0:00:08.3]} 88. Kg2
{[%clk 0:00:03]} 88... Kd3 {[%clk 0:00:08.1]} 89. Kf2 {[%clk 0:00:02.8]} 89...
e4 {[%clk 0:00:08.5]} 90. Kf1 {[%clk 0:00:03.2]} 90... Kd2 {[%clk 0:00:08.6]}
0-1

[Event "*** Titled Tuesday Blitz"]
[Site "Chess.com"]
[Date "2021.03.02"]
[Round "11"]
[White "ChessQueen"]
[Black "Legendinunknown"]
[Result "0-1"]
[WhiteElo "2719"]
[BlackElo "2640"]
[TimeControl "180+1"]
[EndTime "12:11:42 PST"]
[Termination "Legendinunknown won by resignation"]

1. e4 {[%clk 0:03:00.9]} 1... e5 {[%clk 0:02:54.4]} 2. Nf3 {[%clk 0:03:00.4]}
2... Nc6 {[%clk 0:02:52.3]} 3. Bb5 {[%clk 0:03:00.3]} 3... a6 {[%clk 0:02:51.5]}
4. Ba4 {[%clk 0:03:00.4]} 4... d6 {[%clk 0:02:47.4]} 5. c3 {[%clk 0:02:56.3]}
5... g6 {[%clk 0:02:45.3]} 6. d4 {[%clk 0:02:55.7]} 6... Bd7 {[%clk 0:02:44.4]}
7. Bg5 {[%clk 0:02:53.9]} 7... f6 {[%clk 0:02:43.2]} 8. Be3 {[%clk 0:02:53.8]}
8... Nh6 {[%clk 0:02:38.9]} 9. h3 {[%clk 0:02:52.6]} 9... Nf7 {[%clk 0:02:36.2]}
10. c4 {[%clk 0:02:52.6]} 10... Bg7 {[%clk 0:02:33.8]} 11. d5 {[%clk 0:02:50.6]}
11... Ne7 {[%clk 0:02:33.9]} 12. Nc3 {[%clk 0:02:47.2]} 12... O-O {[%clk
0:02:33]} 13. Bxd7 {[%clk 0:02:47.2]} 13... Qxd7 {[%clk 0:02:32.8]} 14. Qa4
{[%clk 0:02:47.4]} 14... Qd8 {[%clk 0:02:25.2]} 15. c5 {[%clk 0:02:46.2]} 15...
f5 {[%clk 0:02:24.7]} 16. cxd6 {[%clk 0:02:45.7]} 16... cxd6 {[%clk 0:02:23.3]}
17. Qb4 {[%clk 0:02:35.1]} 17... b5 {[%clk 0:02:16.4]} 18. a4 {[%clk 0:02:24.3]}
18... a5 {[%clk 0:02:12.2]} 19. Qxb5 {[%clk 0:02:22.7]} 19... Rb8 {[%clk
0:02:11.8]} 20. Qe2 {[%clk 0:02:22.8]} 20... fxe4 {[%clk 0:02:08.7]} 21. Ng5
{[%clk 0:02:12.9]} 21... Nxg5 {[%clk 0:02:02.2]} 22. Bxg5 {[%clk 0:02:13.8]}
22... Bf6 {[%clk 0:01:51.3]} 23. Bxf6 {[%clk 0:02:10.2]} 23... Rxf6 {[%clk
0:01:52.2]} 24. O-O {[%clk 0:02:02]} 24... Rf4 {[%clk 0:01:42.9]} 25. Rad1
{[%clk 0:01:52.8]} 25... Nf5 {[%clk 0:01:41.1]} 26. g3 {[%clk 0:01:42.9]} 26...
Nd4 {[%clk 0:01:30.6]} 27. Rxd4 {[%clk 0:01:42.8]} 27... exd4 {[%clk 0:01:31.5]}
28. gxf4 {[%clk 0:01:43.3]} 28... dxc3 {[%clk 0:01:31.6]} 29. bxc3 {[%clk
0:01:44.1]} 29... Qh4 {[%clk 0:01:21.6]} 30. Qg4 {[%clk 0:01:40.9]} 30... Qxg4+
{[%clk 0:01:17.7]} 31. hxg4 {[%clk 0:01:41.8]} 31... Rc8 {[%clk 0:01:18.4]} 32.
Re1 {[%clk 0:01:41.2]} 32... Rc4 {[%clk 0:01:17.2]} 33. Kg2 {[%clk 0:01:25.9]}
33... Rxa4 {[%clk 0:01:15.5]} 34. Rb1 {[%clk 0:01:17.5]} 34... Rc4 {[%clk
0:01:15]} 35. Rb8+ {[%clk 0:01:13.4]} 35... Kf7 {[%clk 0:01:08.7]} 36. Rb7+
{[%clk 0:01:10.6]} 36... Kg8 {[%clk 0:01:08.7]} 37. Ra7 {[%clk 0:01:04.3]} 37...
Rc5 {[%clk 0:01:06.4]} 38. c4 {[%clk 0:01:02.6]} 38... Rxc4 {[%clk 0:01:01.7]}
39. Rxa5 {[%clk 0:01:02.7]} 39... Rc5 {[%clk 0:00:58]} 40. Ra8+ {[%clk
0:00:50.8]} 40... Kf7 {[%clk 0:00:56.8]} 41. Ra7+ {[%clk 0:00:51.1]} 41... Kf6
{[%clk 0:00:56.8]} 42. Rxh7 {[%clk 0:00:45.9]} 42... Rxd5 {[%clk 0:00:55]} 43.
Kg3 {[%clk 0:00:44.1]} 43... Rd3+ {[%clk 0:00:54.2]} 44. Kh4 {[%clk 0:00:42.8]}
44... Rf3 {[%clk 0:00:51.4]} 45. g5+ {[%clk 0:00:43.2]} 45... Ke6 {[%clk
0:00:51.4]} 46. Kg4 {[%clk 0:00:41.5]} 46... Rxf2 {[%clk 0:00:46.6]} 47. Rg7
{[%clk 0:00:41.7]} 47... e3 {[%clk 0:00:40.3]} 48. Rxg6+ {[%clk 0:00:42]} 48...
Kf7 {[%clk 0:00:30.8]} 49. f5 {[%clk 0:00:38]} 49... d5 {[%clk 0:00:19.2]} 50.
Re6 {[%clk 0:00:34.3]} 50... d4 {[%clk 0:00:19.4]} 51. g6+ {[%clk 0:00:34.7]}
51... Kg7 {[%clk 0:00:18.9]} 52. Kg5 {[%clk 0:00:32.2]} 52... Rg2+ {[%clk
0:00:18.6]} 53. Kf4 {[%clk 0:00:32.6]} 53... e2 {[%clk 0:00:18.3]} 54. Kf3
{[%clk 0:00:19.8]} 54... d3 {[%clk 0:00:17.5]} 55. Kxg2 {[%clk 0:00:15.4]} 55...
d2 {[%clk 0:00:17.5]} 56. Rxe2 {[%clk 0:00:15.5]} 56... d1=Q {[%clk 0:00:17.1]}
57. Re7+ {[%clk 0:00:16]} 57... Kf8 {[%clk 0:00:16.8]} 58. Rf7+ {[%clk 0:00:16]}
58... Kg8 {[%clk 0:00:17.1]} 59. Kg3 {[%clk 0:00:16.5]} 59... Qd4 {[%clk
0:00:16.8]} 60. Kf3 {[%clk 0:00:16.5]} 60... Qc4 {[%clk 0:00:15.9]} 61. Kg3
{[%clk 0:00:16.9]} 61... Qe4 {[%clk 0:00:15.8]} 62. Kh3 {[%clk 0:00:15.9]} 62...
Qf4 {[%clk 0:00:16]} 63. Kg2 {[%clk 0:00:16.2]} 63... Qe3 {[%clk 0:00:16.3]} 64.
Kh2 {[%clk 0:00:14.4]} 64... Qf3 {[%clk 0:00:16.5]} 65. Kg1 {[%clk 0:00:13.2]}
65... Qe2 {[%clk 0:00:16.6]} 66. Kh1 {[%clk 0:00:13.4]} 66... Qf2 {[%clk
0:00:15.7]} 67. Rh7 {[%clk 0:00:11.8]} 67... Qxf5 {[%clk 0:00:14.9]} 68. Kh2
{[%clk 0:00:10.4]} 68... Qxg6 {[%clk 0:00:14.4]} 69. Rh3 {[%clk 0:00:11.3]}
69... Qc2+ {[%clk 0:00:14.3]} 70. Kg3 {[%clk 0:00:11.3]} 70... Kf7 {[%clk
0:00:14.1]} 71. Rh4 {[%clk 0:00:12.1]} 71... Ke6 {[%clk 0:00:13.2]} 72. Rf4
{[%clk 0:00:12.3]} 72... Ke5 {[%clk 0:00:12.4]} 73. Rf3 {[%clk 0:00:12.3]} 73...
Qg6+ {[%clk 0:00:12.1]} 74. Kf2 {[%clk 0:00:12.2]} 74... Qh5 {[%clk 0:00:11.8]}
75. Ra3 {[%clk 0:00:11.3]} 75... Qh2+ {[%clk 0:00:11.2]} 76. Kf1 {[%clk
0:00:11.5]} 76... Qc2 {[%clk 0:00:08.6]} 77. Rh3 {[%clk 0:00:10.8]} 77... Kf4
{[%clk 0:00:08.9]} 78. Kg1 {[%clk 0:00:09.1]} 78... Qd1+ {[%clk 0:00:09]} 79.
Kg2 {[%clk 0:00:09.3]} 79... Qe2+ {[%clk 0:00:09.2]} 80. Kg1 {[%clk 0:00:09.5]}
80... Qe6 {[%clk 0:00:09.3]} 81. Kg2 {[%clk 0:00:08.5]} 81... Qg6+ {[%clk
0:00:09.2]} 82. Kh2 {[%clk 0:00:08]} 82... Qc2+ {[%clk 0:00:08.2]} 83. Kg1
{[%clk 0:00:08.1]} 83... Qd2 {[%clk 0:00:08.5]} 84. Kh1 {[%clk 0:00:07]} 84...
Qe2 {[%clk 0:00:07.7]} 85. Kg1 {[%clk 0:00:07.2]} 85... Qc2 {[%clk 0:00:07.3]}
86. Kh1 {[%clk 0:00:07.2]} 86... Qf2 {[%clk 0:00:07.4]} 87. Ra3 {[%clk
0:00:05.5]} 87... Qe1+ {[%clk 0:00:05.9]} 88. Kh2 {[%clk 0:00:05.8]} 88... Qh4+
{[%clk 0:00:05.7]} 89. Kg2 {[%clk 0:00:05.8]} 89... Qg5+ {[%clk 0:00:05.3]} 90.
Kf1 {[%clk 0:00:05.3]} 90... Qb5+ {[%clk 0:00:05]} 91. Kg2 {[%clk 0:00:04.6]}
91... Qb2+ {[%clk 0:00:04.9]} 0-1